[Event "44th Chess Olympiad Open 2022"]
[Site "Chennai"]
[Date "2022.08.06"]
[Round "8.42"]
[White "Nielsen, Hogni Egilstoft"]
[Black "Masango, Spencer"]
[Result "1/2-1/2"]
[WhiteElo "2414"]
[BlackElo "2170"]
[Annotator "TA"]
[PlyCount "102"]
[EventDate "2022.??.??"]
[TimeControl "60"]

{[%evp 9,102,6,18,16,20,18,20,21,29,24,33,0,0,0,0,0,0,0,0,0,0,-37,-9,-23,-10,
-29,0,0,0,-7,-10,-11,-9,-15,-8,-4,0,-25,-5,-37,-29,-39,-33,-34,-31,-46,-20,-36,
-17,-35,-27,-27,-21,-39,-39,-59,-3,0,0,-43,-3,-39,-31,-54,-49,-58,-57,-67,-43,
-60,-25,-25,-21,-40,-3,-8,-6,-38,-11,-11,0,0,0,-8,-10,-8,-7,-31,-3,-3,0,0,0,0,
0]} 1. e4 {[%emt 0:00:05]} e5 {[%emt 0:00:28]} 2. Nf3 {[%emt 0:00:10]} Nc6 {
[%emt 0:00:11]} 3. Bc4 {[%emt 0:00:11]} Bc5 {[%emt 0:00:13]} 4. O-O {[%emt 0:
00:00]} Nf6 {[%emt 0:00:09]} 5. d3 {[%emt 0:00:37]} O-O {[%emt 0:00:40]} 6.
Nbd2 {[%emt 0:04:56] C50: Hungarian Defence and Giuoco Pianissimo.} a6 {
[%emt 0:04:20]} 7. c3 {[%emt 0:03:35]} Ba7 {[%emt 0:02:26] seems to push 7...
d6 aside.} 8. Re1 {[%emt 0:05:57]} Ng4 {[%emt 0:02:28]} 9. Re2 {[%emt 0:09:52]}
d6 {[%emt 0:00:59]} 10. h3 {[%emt 0:00:33]} Nf6 {[%emt 0:04:22]} 11. Bb3 {
[%emt 0:04:54]} Nh5 {[%emt 0:12:03]} 12. Nf1 {[%emt 0:18:50]} Qf6 {[%emt 0:00:
00][%cal Yc8h3]} 13. Bg5 {[%emt 0:16:00]} Qg6 {[%emt 0:00:27][%cal Yc8h3] [#]}
14. Kh1 $146 {[%emt 0:00:20]} ({Predecessor:} 14. Qd2 h6 15. g4 hxg5 16. gxh5
Qxh5 17. Nxg5 Bxh3 18. Nxh3 Qxh3 19. Nh2 g6 20. Qg5 {0-1 (69) Dokmanovic,
N-Mihalincic,I (2030) Zadar 1995}) 14... Be6 {[%emt 0:05:40]} 15. Qd2 {[%emt 0:
00:00] [#] Strongly threatening Nh4.} h6 {[%emt 0:00:57] And now ...Bxb3 would
win.} 16. Be3 {[%emt 0:00:09]} Bxe3 {[%emt 0:07:07]} (16... Bxb3 {is
interesting.} 17. axb3 Bxe3 18. Rxe3 Nf4) 17. fxe3 {[%emt 0:03:33]} Ng3+ {
[%emt 0:04:19]} 18. Nxg3 {[%emt 0:01:17]} Qxg3 {[%emt 0:00:28]} 19. Qe1 {
[%emt 0:08:16]} Qxe1+ {[%emt 0:00:18]} 20. Rexe1 {[%emt 0:00:20]} Bxb3 {
[%emt 0:00:46]} 21. axb3 {[%emt 0:00:02]} f5 {[%emt 0:00:32]} 22. exf5 {
[%emt 0:00:20]} Rxf5 {[%emt 0:00:48]} 23. e4 {[%emt 0:02:13]} Rf4 {[%emt 0:00:
00]} 24. Rf1 {[%emt 0:01:35]} Raf8 {[%emt 0:00:59]} 25. Kg1 {[%emt 0:00:46]}
Nd8 {[%emt 0:04:13]} 26. b4 {[%emt 0:04:57]} Ne6 {[%emt 0:01:29]} 27. Rae1 {
[%emt 0:01:31]} R4f7 {[%emt 0:01:50]} 28. Re3 {[%emt 0:00:32]} Nf4 {[%emt 0:00:
00]} 29. Nd2 {[%emt 0:00:51]} Rf6 {[%emt 0:00:24]} 30. Kh2 {[%emt 0:00:29]} g5
{[%emt 0:03:51]} 31. d4 {[%emt 0:01:57]} exd4 {[%emt 0:14:24]} 32. cxd4 {
[%emt 0:00:01]} Ne6 {[%emt 0:04:54]} (32... d5 $15) 33. Rxf6 $11 {[%emt 0:00:
00]} Rxf6 {[%emt 0:00:06] Endgame KRN-KRN} 34. Nf3 {[%emt 0:00:15]} Rf7 {
[%emt 0:01:39]} (34... d5 $5) 35. Rc3 {[%emt 0:01:17]} c6 {[%emt 0:00:37]} 36.
d5 {[%emt 0:00:31]} cxd5 {[%emt 0:00:26]} 37. exd5 {[%emt 0:00:02]} Nc7 {
[%emt 0:03:05]} 38. Nd2 {[%emt 0:00:01]} Nxd5 {[%emt 0:01:54]} 39. Rd3 {
[%emt 0:00:09]} Nxb4 {[%emt 0:01:31]} 40. Rxd6 {[%emt 0:00:17]} Kg7 {[%emt 0:
00:00]} 41. Ne4 {[%emt 0:08:43]} Nc2 {[%emt 0:03:59]} 42. Rb6 {[%emt 0:07:58]}
Ne3 {[%emt 0:07:16]} 43. Nc5 {[%emt 0:09:18]} Nc4 {[%emt 0:02:26]} 44. Rb4 {
[%emt 0:00:36]} Nd6 {[%emt 0:03:06]} 45. Rb6 {[%emt 0:00:20]} Nc4 {[%emt 0:00:
00]} 46. Rb4 {[%emt 0:00:04]} Na5 {[%emt 0:00:56]} 47. Rd4 {[%emt 0:02:59]} Re7
{[%emt 0:01:09]} 48. Rd8 {[%emt 0:01:46]} Nc4 {[%emt 0:04:20]} 49. b3 {[%emt 0:
00:00] The position is equal.} Na5 {[%emt 0:00:17]} 50. Rd6 {[%emt 0:00:49]}
Nc6 {[%emt 0:03:42]} 51. Nxb7 {[%emt 0:01:54] [#] Remove Defender} Rxb7 {
[%emt 0:00:09] Weighted Error Value: White=0.09 (flawless) /Black=0.11 (very
precise)} 1/2-1/2

[Event "44th Chess Olympiad Open 2022"]
[Site "Chennai"]
[Date "2022.08.06"]
[Round "8.42"]
[White "Rodgaard, John"]
[Black "Zhemba, Jemusse"]
[Result "1/2-1/2"]
[WhiteElo "2324"]
[BlackElo "2162"]
[Annotator "RC"]
[PlyCount "219"]
[EventDate "2022.??.??"]
[TimeControl "60"]

1. c4 {[%emt 0:00:15]} e6 {[%emt 0:00:19]} 2. Nf3 {[%emt 0:01:01]} Nf6 {
[%emt 0:00:18]} 3. g3 {[%emt 0:01:35]} d5 {[%emt 0:00:13]} 4. d4 {[%emt 0:00:
00]} Be7 {[%emt 0:00:06]} 5. Bg2 {[%emt 0:01:47]} O-O {[%emt 0:00:08]} 6. O-O {
[%emt 0:04:53]} dxc4 {[%emt 0:00:28]} 7. Qc2 {[%emt 0:06:35]} a6 {[%emt 0:00:
00]} 8. a4 {[%emt 0:02:22]} Nc6 {[%emt 0:03:53]} 9. Qxc4 {[%emt 0:05:26]} Qd5 {
[%emt 0:00:45]} 10. Nbd2 {[%emt 0:06:03]} Rd8 {[%emt 0:00:41]} 11. Qxd5 {
[%emt 0:10:44]} exd5 {[%emt 0:00:40]} 12. Nb3 {[%emt 0:01:59]} Bf5 {[%emt 0:00:
00]} 13. Bg5 {[%emt 0:09:11]} Ne8 {[%emt 0:08:01]} 14. Bxe7 {[%emt 0:03:36]}
Nxe7 {[%emt 0:01:14]} 15. Rfc1 {[%emt 0:00:53]} c6 {[%emt 0:00:24]} 16. a5 {
[%emt 0:04:35]} Nd6 {[%emt 0:00:07]} 17. Nc5 {[%emt 0:00:32]} Re8 {[%emt 0:00:
00]} 18. e3 {[%emt 0:01:59]} Rad8 {[%emt 0:00:13]} 19. Bf1 {[%emt 0:06:37]} Bc8
{[%emt 0:02:20]} 20. Bd3 {[%emt 0:01:35]} f6 {[%emt 0:01:08]} 21. Kg2 {[%emt 0:
00:00]} Kf7 {[%emt 0:05:19]} 22. h4 {[%emt 0:02:18]} Bf5 {[%emt 0:00:16]} 23.
Be2 {[%emt 0:02:48]} Be4 {[%emt 0:00:35]} 24. Nxe4 {[%emt 0:02:19]} Nxe4 {
[%emt 0:00:16]} 25. Bd3 {[%emt 0:02:38]} Nf5 {[%emt 0:02:03]} 26. Bxe4 {
[%emt 0:02:40]} Rxe4 {[%emt 0:00:15]} 27. Rc3 {[%emt 0:02:03]} Re7 {[%emt 0:00:
00]} 28. b3 {[%emt 0:03:15]} h5 {[%emt 0:00:04]} 29. Rh1 {[%emt 0:00:47]} Rg8 {
[%emt 0:01:09]} 30. Rcc1 {[%emt 0:01:11]} Nd6 {[%emt 0:00:05]} 31. Rc2 {
[%emt 0:00:36]} Kg6 {[%emt 0:00:16]} 32. Ne1 {[%emt 0:01:00]} Nf5 {[%emt 0:00:
00]} 33. Rc3 {[%emt 0:00:24]} Rge8 {[%emt 0:01:03]} 34. Nd3 {[%emt 0:00:44]}
Kh6 {[%emt 0:00:26]} 35. Nf4 {[%emt 0:01:11]} g6 {[%emt 0:01:41]} 36. Kf3 {
[%emt 0:00:35]} Nd6 {[%emt 0:01:55]} 37. Rc2 {[%emt 0:00:35]} Rf8 {[%emt 0:00:
00]} 38. Kg2 {[%emt 0:00:16]} Kg7 {[%emt 0:01:12]} 39. Rh2 {[%emt 0:01:05]} Rh8
{[%emt 0:00:23]} 40. Rc1 {[%emt 0:00:54]} Kf7 {[%emt 0:00:08]} 41. Rc2 {
[%emt 0:32:05]} Nf5 {[%emt 0:30:55]} 42. Rc3 {[%emt 0:00:00]} Rb8 {[%emt 0:00:
00]} 43. Rh1 {[%emt 0:00:00]} Rg8 {[%emt 0:00:00]} 44. Rh2 {[%emt 0:00:00]} Ke8
{[%emt 0:00:00]} 45. Rh1 {[%emt 0:00:00]} Kd7 {[%emt 0:00:00]} 46. Rh2 {
[%emt 0:00:00]} Kd6 {[%emt 0:00:00]} 47. Rh1 {[%emt 0:00:00]} Rh7 {[%emt 0:00:
00]} 48. Rcc1 {[%emt 0:00:00]} Rh6 {[%emt 0:00:00]} 49. Rh2 {[%emt 0:00:00]}
Ng7 {[%emt 0:00:00]} 50. Nd3 {[%emt 0:00:00]} Rb8 {[%emt 0:00:00]} 51. Rhh1 {
[%emt 0:00:00]} Ne6 {[%emt 0:00:00]} 52. Nc5 {[%emt 0:00:00]} Nxc5 {[%emt 0:00:
00]} 53. Rxc5 {[%emt 0:00:00]} Rh7 {[%emt 0:00:00]} 54. Kf3 {[%emt 0:00:40]}
Re7 {[%emt 0:00:00]} 55. Rc3 {[%emt 0:01:09]} Re4 {[%emt 0:00:00]} 56. Rc2 {
[%emt 0:01:33]} Rbe8 {[%emt 0:00:00]} 57. Rc3 {[%emt 0:00:22]} Ke7 {[%emt 0:00:
00]} 58. Ke2 {[%emt 0:03:06]} Kf7 {[%emt 0:00:00]} 59. Kd2 {[%emt 0:00:19]} Rh8
{[%emt 0:00:00]} 60. Kd3 {[%emt 0:01:24]} g5 {[%emt 0:00:00]} 61. f3 {[%emt 0:
00:00]} Re7 {[%emt 0:00:00]} 62. Rc2 {[%emt 0:00:46]} Kg6 {[%emt 0:00:00]} 63.
Rch2 {[%emt 0:00:36]} Rhe8 {[%emt 0:00:00]} 64. Re2 {[%emt 0:00:38]} Re6 {
[%emt 0:00:00]} 65. Rhh2 {[%emt 0:00:22]} Rd8 {[%emt 0:00:42]} 66. Rh1 {
[%emt 0:00:27]} Rg8 {[%emt 0:01:25]} 67. Reh2 {[%emt 0:00:46]} Rge8 {[%emt 0:
00:00]} 68. Re2 {[%emt 0:00:05]} R6e7 {[%emt 0:00:19]} 69. Rhh2 {[%emt 0:00:16]
} Rb8 {[%emt 0:00:56]} 70. Ra2 {[%emt 0:00:31]} Rc7 {[%emt 0:00:30]} 71. Ra1 {
[%emt 0:02:22]} Re7 {[%emt 0:01:28]} 72. Raa2 {[%emt 0:00:00]} Rg8 {[%emt 0:00:
00]} 73. Rh1 {[%emt 0:00:00]} Reg7 {[%emt 0:00:29]} 74. Rah2 {[%emt 0:00:10]}
Rh7 {[%emt 0:00:41]} 75. Kd2 {[%emt 0:00:38]} Rb8 {[%emt 0:01:21]} 76. Ra1 {
[%emt 0:00:41]} Rg8 {[%emt 0:03:06]} 77. Rah1 {[%emt 0:00:29]} Rc8 {[%emt 0:00:
00]} 78. Rc1 {[%emt 0:00:25]} Re7 {[%emt 0:00:19]} 79. Kd3 {[%emt 0:00:14]} Rg8
{[%emt 0:00:28]} 80. Rch1 {[%emt 0:00:18]} Rge8 {[%emt 0:01:06]} 81. Re2 {
[%emt 0:00:17]} Rb8 {[%emt 0:00:54]} 82. Ra2 {[%emt 0:00:21]} Re6 {[%emt 0:00:
00]} 83. Rhh2 {[%emt 0:00:17]} Re7 {[%emt 1:07:39]} 84. Rh1 {[%emt 0:00:14]}
Rbe8 {[%emt 0:00:00]} 85. Re2 {[%emt 0:00:13]} Rg7 {[%emt 0:00:00]} 86. Reh2 {
[%emt 0:00:41]} Rh8 {[%emt 0:00:00]} 87. Kc3 {[%emt 0:01:09]} g4 {[%emt 0:00:
00]} 88. fxg4 {[%emt 0:00:25]} Kf7 {[%emt 0:00:00]} 89. g5 {[%emt 0:00:58]}
fxg5 {[%emt 0:00:00]} 90. Rf2+ {[%emt 0:00:28]} Ke6 {[%emt 0:00:00]} 91. Rhf1 {
[%emt 0:00:18]} gxh4 {[%emt 0:00:00]} 92. gxh4 {[%emt 0:00:05]} Rhh7 {[%emt 0:
00:00]} 93. Rf5 {[%emt 0:01:20]} Rg4 {[%emt 0:00:00]} 94. Re5+ {[%emt 0:00:22]}
Kd7 {[%emt 0:00:00]} 95. Rf4 {[%emt 0:00:15]} Re7 {[%emt 0:00:00]} 96. Rxh5 {
[%emt 0:02:26]} Rxe3+ {[%emt 0:00:00]} 97. Kd2 {[%emt 0:01:11]} Rgg3 {[%emt 0:
00:00]} 98. Rf7+ {[%emt 0:00:44]} Ke6 {[%emt 0:00:00]} 99. Rxb7 {[%emt 0:00:09]
} Rd3+ {[%emt 0:00:00]} 100. Kc2 {[%emt 0:00:14]} Rxd4 {[%emt 0:00:00]} 101.
Rh6+ {[%emt 0:00:15]} Ke5 {[%emt 0:00:00]} 102. Re7+ {[%emt 0:00:41]} Kf5 {
[%emt 0:00:00]} 103. Rxc6 {[%emt 0:00:30]} Rxh4 {[%emt 0:00:00]} 104. Re2 {
[%emt 0:01:03]} Rhh3 {[%emt 0:00:00]} 105. Rd2 {[%emt 0:00:46]} Rxb3 {[%emt 0:
00:00]} 106. Rxd5+ {[%emt 0:00:06]} Ke4 {[%emt 0:00:00]} 107. Rdc5 {[%emt 0:00:
00]} Rb4 {[%emt 0:00:00]} 108. Rc4+ {[%emt 0:00:53]} Rxc4+ {[%emt 0:00:00]}
109. Rxc4+ {[%emt 0:00:02]} Ke5 {[%emt 0:00:00]} 110. Kd1 {[%emt 0:04:06]}
1/2-1/2

[Event "44th Chess Olympiad Open 2022"]
[Site "Chennai"]
[Date "2022.08.06"]
[Round "8.42"]
[White "Mushore, Emarald Takudzwa"]
[Black "Egilstoft, Rogvi"]
[Result "1/2-1/2"]
[WhiteElo "2153"]
[BlackElo "2284"]
[Annotator "NA RC"]
[PlyCount "52"]
[EventDate "2022.??.??"]
[TimeControl "60"]

1. e4 {[%emt 0:00:28]} e5 {[%emt 0:00:08]} 2. Nf3 {[%emt 0:00:08]} Nc6 {
[%emt 0:00:13]} 3. Bc4 {[%emt 0:00:04]} Bc5 {[%emt 0:00:42]} 4. d3 {[%emt 0:00:
00]} Nf6 {[%emt 0:00:31]} 5. O-O {[%emt 0:00:22]} O-O {[%emt 0:01:17]} 6. c3 {
[%emt 0:06:39]} d5 {[%emt 0:01:00]} 7. exd5 {[%emt 0:00:09]} Nxd5 {[%emt 0:00:
00]} 8. Re1 {[%emt 0:00:11]} Bg4 {[%emt 0:01:08]} 9. Nbd2 {[%emt 0:00:35]} Nb6
{[%emt 0:02:24]} 10. h3 {[%emt 0:02:46]} Bh5 {[%emt 0:03:03]} 11. Bb3 {[%emt 0:
00:00]} Be7 {[%emt 0:50:10]} 12. Ne4 {[%emt 0:03:54]} Bg6 {[%emt 0:09:44]} 13.
Bc2 {[%emt 0:06:52]} Qd7 {[%emt 0:02:55]} 14. Qe2 {[%emt 0:02:48]} Rad8 {
[%emt 0:00:22]} 15. b4 {[%emt 0:00:32]} f6 {[%emt 0:21:08]} 16. Rd1 {[%emt 0:
00:00]} Qe8 {[%emt 0:01:40]} 17. a3 {[%emt 0:13:36]} a6 {[%emt 0:00:18]} 18.
Qe1 {[%emt 0:05:41]} Kh8 {[%emt 0:00:31]} 19. Bb2 {[%emt 0:06:07]} Bh5 {
[%emt 0:00:18]} 20. Qe2 {[%emt 0:10:54]} Nd5 {[%emt 0:00:01]} 21. Ng3 {[%emt 0:
00:00]} Nf4 {[%emt 0:00:08]} 22. Qe3 {[%emt 0:00:08]} Nd5 {[%emt 0:00:46]} 23.
Qe2 {[%emt 0:03:11]} Nf4 {[%emt 0:00:12]} 24. Qe3 {[%emt 0:00:41]} Nd5 {
[%emt 0:00:25]} 25. Qe2 {[%emt 0:01:34]} Nf4 {[%emt 0:01:16]} 26. Qe3 {[%emt 0:
00:00]} Nd5 {[%emt 0:00:42]} 1/2-1/2

[Event "44th Chess Olympiad Open 2022"]
[Site "Chennai"]
[Date "2022.08.06"]
[Round "8.42"]
[White "Mwadzura, Roy"]
[Black "Apol, Luitjen Akselsson"]
[Result "1-0"]
[WhiteElo "2093"]
[BlackElo "2289"]
[Annotator "NA RC"]
[PlyCount "51"]
[EventDate "2022.??.??"]
[TimeControl "60"]

1. e4 {[%emt 0:01:32]} c5 {[%emt 0:00:36]} 2. Ne2 {[%emt 0:00:40]} Nf6 {
[%emt 0:01:10]} 3. d3 {[%emt 0:02:18]} Nc6 {[%emt 0:02:56]} 4. g3 {[%emt 0:00:
00]} d5 {[%emt 0:02:56]} 5. Nd2 {[%emt 0:00:26]} e5 {[%emt 0:03:02]} 6. Bg2 {
[%emt 0:00:35]} Be7 {[%emt 0:02:08]} 7. h3 {[%emt 0:00:43]} h5 {[%emt 0:16:04]}
8. f4 {[%emt 0:16:46]} h4 {[%emt 0:04:01]} 9. g4 {[%emt 0:00:31]} exf4 {
[%emt 0:22:16]} 10. Nxf4 {[%emt 0:01:03]} dxe4 {[%emt 0:02:57]} 11. Nxe4 {
[%emt 0:03:00]} O-O {[%emt 0:02:20]} 12. Be3 {[%emt 0:10:40]} Re8 {[%emt 0:00:
00]} 13. Qd2 {[%emt 0:09:24]} Nd4 {[%emt 0:05:25]} 14. O-O-O {[%emt 0:17:46]}
Nxe4 {[%emt 0:04:52]} 15. Bxe4 {[%emt 0:05:46]} Bg5 {[%emt 0:01:06]} 16. Kb1 {
[%emt 0:01:23]} Qd6 {[%emt 0:12:31]} 17. Nh5 {[%emt 0:01:47]} Bxe3 {[%emt 0:00:
00]} 18. Qxe3 {[%emt 0:00:14]} Qe7 {[%emt 0:03:28]} 19. Rde1 {[%emt 0:11:35]}
Be6 {[%emt 0:00:33]} 20. g5 {[%emt 0:01:08]} Bf5 {[%emt 0:02:52]} 21. Qf4 {
[%emt 0:01:03]} c4 {[%emt 0:01:23]} 22. Qxh4 {[%emt 0:01:02]} c3 {[%emt 0:00:
00]} 23. Nf6+ {[%emt 0:03:37]} gxf6 {[%emt 0:00:08]} 24. gxf6 {[%emt 0:00:04]}
Qb4 {[%emt 0:01:10]} 25. Reg1+ {[%emt 0:00:16]} Bg6 {[%emt 0:00:14]} 26. Rxg6+
{[%emt 0:00:04]} 1-0

[Event "44th Chess Olympiad Open 2022"]
[Site "Chennai"]
[Date "2022.08.06"]
[Round "8.43"]
[White "Lazov, Toni"]
[Black "El Jawich, Amro"]
[Result "1-0"]
[WhiteElo "2374"]
[BlackElo "2314"]
[Annotator "ChessBase"]
[PlyCount "91"]
[EventDate "2022.??.??"]
[TimeControl "60"]

1. e4 {[%emt 0:00:03]} c5 {[%emt 0:00:06]} 2. Nc3 {[%emt 0:01:24]} Nc6 {
[%emt 0:00:44]} 3. Bb5 {[%emt 0:00:09]} Nd4 {[%emt 0:00:24]} 4. Nf3 {[%emt 0:
00:00]} a6 {[%emt 0:01:59]} 5. Bd3 {[%emt 0:00:26]} g6 {[%emt 0:01:38]} 6. b4 {
[%emt 0:08:30]} cxb4 {[%emt 0:05:34]} 7. Nd5 {[%emt 0:11:22]} Nc6 {[%emt 0:00:
00]} 8. Bb2 {[%emt 0:04:52]} f6 {[%emt 0:10:07]} 9. h4 {[%emt 0:03:39]} e6 {
[%emt 0:03:54]} 10. Ne3 {[%emt 0:09:02]} h6 {[%emt 0:19:14]} 11. e5 {[%emt 0:
00:00]} f5 {[%emt 0:00:42]} 12. h5 {[%emt 0:00:06]} g5 {[%emt 0:02:02]} 13. g4
{[%emt 0:00:11]} f4 {[%emt 0:05:40]} 14. Bg6+ {[%emt 0:04:12]} Ke7 {[%emt 0:00:
00]} 15. Nc4 {[%emt 0:00:30]} Bg7 {[%emt 0:00:58]} 16. Nd6 {[%emt 0:09:35]} Kf8
{[%emt 0:01:27]} 17. Nf7 {[%emt 0:03:50]} Qc7 {[%emt 0:02:18]} 18. d4 {[%emt 0:
00:00]} Nge7 {[%emt 0:01:31]} 19. Nxh8 {[%emt 0:05:16]} Bxh8 {[%emt 0:00:02]}
20. a3 {[%emt 0:01:19]} b5 {[%emt 0:02:47]} 21. Be4 {[%emt 0:05:42]} Bb7 {
[%emt 0:02:04]} 22. O-O {[%emt 0:02:33]} Na5 {[%emt 0:04:15]} 23. Bxb7 {
[%emt 0:03:11]} Qxb7 {[%emt 0:00:15]} 24. Nd2 {[%emt 0:00:56]} Rc8 {[%emt 0:00:
00]} 25. axb4 {[%emt 0:00:32]} Nc4 {[%emt 0:01:14]} 26. Nxc4 {[%emt 0:00:31]}
Rxc4 {[%emt 0:03:32]} 27. Qd3 {[%emt 0:00:31]} Bg7 {[%emt 0:00:20]} 28. c3 {
[%emt 0:01:16]} Nd5 {[%emt 0:01:46]} 29. Ra3 {[%emt 0:01:11]} Rc6 {[%emt 0:00:
00]} 30. Bc1 {[%emt 0:00:53]} Qc8 {[%emt 0:02:43]} 31. Bd2 {[%emt 0:01:57]} Qb7
{[%emt 0:00:16]} 32. Rfa1 {[%emt 0:01:06]} Nc7 {[%emt 0:02:22]} 33. Kh2 {
[%emt 0:03:49]} Nd5 {[%emt 0:02:27]} 34. R1a2 {[%emt 0:01:22]} Nc7 {[%emt 0:00:
00]} 35. Rc2 {[%emt 0:05:22]} Rc4 {[%emt 0:00:18]} 36. Rc1 {[%emt 0:00:37]} Qd5
{[%emt 0:01:17]} 37. Re1 {[%emt 0:00:38]} Qb7 {[%emt 0:01:02]} 38. Rea1 {
[%emt 0:01:34]} Rc6 {[%emt 0:02:11]} 39. Bxf4 {[%emt 0:02:37]} gxf4 {[%emt 0:
00:00]} 40. g5 {[%emt 0:00:03]} hxg5 {[%emt 0:07:26]} 41. Qh7 {[%emt 0:11:42]}
Rc4 {[%emt 0:10:55]} 42. h6 {[%emt 0:00:47]} Bxe5 {[%emt 0:09:44]} 43. dxe5 {
[%emt 0:02:00]} Qf3 {[%emt 0:00:31]} 44. Qg7+ {[%emt 0:00:59]} Ke8 {[%emt 0:00:
00]} 45. Qg8+ {[%emt 0:00:07]} Ke7 {[%emt 0:00:30]} 46. Qxg5+ {[%emt 0:00:06]}
1-0

[Event "44th Chess Olympiad Open 2022"]
[Site "Chennai"]
[Date "2022.08.06"]
[Round "8.43"]
[White "Veljanoski, Andrej"]
[Black "Kassis, Antoine"]
[Result "1-0"]
[WhiteElo "2162"]
[BlackElo "2202"]
[Annotator "NA RC"]
[PlyCount "53"]
[EventDate "2022.??.??"]
[TimeControl "60"]

1. e4 {[%emt 0:00:23]} c5 {[%emt 0:00:04]} 2. Nf3 {[%emt 0:00:12]} Nc6 {
[%emt 0:00:05]} 3. d4 {[%emt 0:00:06]} cxd4 {[%emt 0:00:06]} 4. Nxd4 {[%emt 0:
00:00]} g6 {[%emt 0:00:07]} 5. c4 {[%emt 0:00:55]} Nf6 {[%emt 0:01:05]} 6. Nc3
{[%emt 0:00:07]} d6 {[%emt 0:03:12]} 7. Be2 {[%emt 0:02:13]} Nxd4 {[%emt 0:00:
00]} 8. Qxd4 {[%emt 0:00:06]} Bg7 {[%emt 0:00:04]} 9. Be3 {[%emt 0:00:20]} O-O
{[%emt 0:00:11]} 10. Qd2 {[%emt 0:00:29]} Be6 {[%emt 0:00:20]} 11. O-O {
[%emt 0:00:33]} Qa5 {[%emt 0:02:44]} 12. f3 {[%emt 0:15:57]} Rfc8 {[%emt 0:00:
00]} 13. b3 {[%emt 0:21:22]} a6 {[%emt 0:02:26]} 14. Rab1 {[%emt 0:19:56]} b5 {
[%emt 0:27:23]} 15. b4 {[%emt 0:01:32]} Qc7 {[%emt 0:09:15]} 16. Nd5 {[%emt 0:
00:00]} Bxd5 {[%emt 0:00:14]} 17. cxd5 {[%emt 0:00:11]} Qc3 {[%emt 0:01:34]}
18. Rfc1 {[%emt 0:09:14]} Qxd2 {[%emt 0:00:37]} 19. Bxd2 {[%emt 0:00:03]} Nd7 {
[%emt 0:00:37]} 20. Be3 {[%emt 0:00:18]} Rc3 {[%emt 0:14:24]} 21. Rxc3 {
[%emt 0:07:48]} Bxc3 {[%emt 0:00:06]} 22. Kf2 {[%emt 0:00:01]} Kg7 {[%emt 0:00:
00]} 23. Rb3 {[%emt 0:01:37]} Bf6 {[%emt 0:00:55]} 24. Ra3 {[%emt 0:01:59]} Bb2
{[%emt 0:04:15]} 25. Ra5 {[%emt 0:00:57]} Rc8 {[%emt 0:01:00]} 26. Rxa6 {
[%emt 0:00:20]} Rc2 {[%emt 0:00:07]} 27. Rc6 {[%emt 0:00:09]} 1-0

[Event "44th Chess Olympiad Open 2022"]
[Site "Chennai"]
[Date "2022.08.06"]
[Round "8.43"]
[White "Kaloust, Giorgio"]
[Black "Stanojoski, Zvonko"]
[Result "0-1"]
[WhiteElo "1942"]
[BlackElo "2412"]
[Annotator "TA"]
[PlyCount "62"]
[EventDate "2022.??.??"]
[TimeControl "60"]

{[%evp 17,62,35,62,33,39,33,46,33,21,19,30,23,26,11,64,43,81,71,71,71,94,22,35,
0,0,0,0,0,-7,-22,-13,-26,19,-59,-48,-92,-89,-411,-435,-685,-687,-583,-425,-437,
-413,-747,-719]} 1. d4 {[%emt 0:00:04]} g6 {[%emt 0:00:19]} 2. g3 {[%emt 0:00:
00]} Bg7 {[%emt 0:00:11]} 3. Bg2 {[%emt 0:00:11]} c5 {[%emt 0:02:32]} 4. d5 {
[%emt 0:02:29]} d6 {[%emt 0:00:14]} 5. c4 {[%emt 0:01:28]} Na6 {[%emt 0:04:45]}
6. Nf3 {[%emt 0:02:38]} Nc7 {[%emt 0:00:27]} 7. a4 {[%emt 0:03:25]} Nf6 {
[%emt 0:02:29]} 8. Nc3 {[%emt 0:00:52]} O-O {[%emt 0:00:20]} 9. O-O {[%emt 0:
00:00]} Rb8 {[%emt 0:00:43]} 10. Qc2 {[%emt 0:05:58] [#] E64: King's Indian:
Fianchetto: 6...c5 7 d5.} Na6 $146 {[%emt 0:00:58]} ({Predecessor:} 10... a6
11. a5 e6 12. e4 exd5 13. cxd5 Re8 14. Nd2 Nb5 15. Nc4 Ng4 16. Bf4 Nd4 17. Qd3
Ne5 18. Bxe5 Bxe5 19. Nxe5 Rxe5 {½-½ (42) Molina Mendoza,O (2214)-Cofre
Archibold,N (2364) Guayaquil 2018}) 11. e4 {[%emt 0:03:41]} Bg4 {[%emt 0:03:47]
} 12. h3 {[%emt 0:00:48] White is slightly better.} Bxf3 {[%emt 0:03:03]} 13.
Bxf3 {[%emt 0:00:03]} Nb4 {[%emt 0:00:57]} 14. Qd1 {[%emt 0:05:39]} e6 {
[%emt 0:04:01]} 15. Bf4 {[%emt 0:04:13] White wants to play dxe6.} e5 {[%emt 0:
00:00]} ({Black should play} 15... exd5 $11 16. cxd5 (16. exd5 a6 $14) 16... a6
) 16. Be3 {[%emt 0:01:04]} h6 {[%emt 0:04:54]} 17. Qd2 {[%emt 0:03:51]} Kh7 {
[%emt 0:00:15]} 18. Bg2 {[%emt 0:03:06]} a6 {[%emt 0:06:58]} 19. f4 {[%emt 0:
00:00]} (19. Na2 $16) 19... Nh5 $11 {[%emt 0:02:32]} 20. fxe5 {[%emt 0:14:08] 
[#] And now g4 would win.} Nxg3 {[%emt 0:04:26]} 21. Rf3 {[%emt 0:00:56]} Bxe5
{[%emt 0:00:34]} 22. Bxh6 {[%emt 0:02:00]} Qe7 {[%emt 0:01:24][%cal Yf7f5]} 23.
Bxf8 {[%emt 0:10:00]} Rxf8 {[%emt 0:00:09]} 24. Re1 {[%emt 0:08:46]} Qh4 {
[%emt 0:08:46]} 25. Qc1 {[%emt 0:15:32]} (25. Qf2 $11) 25... Kg7 $15 {[%emt 0:
00:00]} 26. Ne2 {[%emt 0:02:41]} Nxe4 {[%emt 0:01:12] aiming for ...Ng5.0x0.
0024cc5f105adp-1022s more active pieces.} 27. Nc3 $2 {[%emt 0:00:49] This
costs White the game.} (27. Ref1 $17) 27... Ng5 $19 {[%emt 0:00:28] [#]
Discovered Attack. The board is on fire. Pair of Knights!} 28. Ref1 {[%emt 0:
01:04]} (28. Rfe3 $142 Bd4 29. Kh1) 28... Nxf3+ {[%emt 0:00:58]} 29. Rxf3 {
[%emt 0:00:08]} Qxc4 {[%emt 0:00:30]} 30. Qd2 {[%emt 0:01:03]} Qd4+ {[%emt 0:
01:19]} 31. Rf2 {[%emt 0:00:42]} (31. Qxd4 $142 Bxd4+ 32. Kh2) 31... Nd3 {
[%emt 0:00:34] Weighted Error Value: White=0.74/Black=0.18 (very precise)} 0-1